bitfinex/quotes_SOLUSD_20250902
["timestamp","ask_amount","ask_price","bid_price","bid_amount"]
[1756771662961,0.03,197.38,197.33,5.18759851]
[1756771663166,3.41271885,197.37,197.36,0.67]
[1756771663369,3.41271885,197.37,197.33,0.79]
[1756771663575,3.41271885,197.36,197.34,0.67]
[1756771663883,0.03,197.38,197.35,0.67]
[1756771664091,3.41278281,197.37,197.35,0.67]
[1756771664263,3.41278281,197.36,197.33,0.12]
[1756771664581,3.41278281,197.35,197.33,0.12]
[1756771664759,0.03,197.38,197.33,0.12]
[1756771664760,3.41327445,197.34,197.33,0.12]
[1756771664966,4.09327445,197.34,197.33,0.12]
[1756771665168,30.09327445,197.34,197.33,0.12]
[1756771665771,35.16067082,197.34,197.33,0.12]
[1756771666475,35.16067082,197.34,197.31,0.12]
[1756771666677,49.04061571,197.33,197.31,0.12]
[1756771666878,3.41327445,197.32,197.31,0.12]
[1756771667188,3.41327445,197.33,197.31,0.12]
[1756771667397,5.06710046,197.36,197.31,0.12]
[1756771667576,3.41282899,197.35,197.31,0.12]
[1756771667780,3.41282899,197.34,197.32,0.67]
[1756771668094,3.41282899,197.33,197.32,0.67]
[1756771668265,3.41282899,197.35,197.32,0.67]
[1756771668463,3.41282899,197.34,197.32,0.67]
[1756771668673,3.41282899,197.33,197.32,0.67]
[1756771668874,71.65734126,197.38,197.32,0.67]
[1756771668875,3.41282899,197.35,197.32,0.67]
[1756771669081,31.09640884,197.38,197.32,0.67]
[1756771669082,3.41282899,197.34,197.32,0.67]
[1756771669281,3.41282899,197.36,197.32,59.67]
[1756771669467,3.41282899,197.35,197.33,0.67]
[1756771669666,3.41282899,197.34,197.33,0.67]
[1756771669861,3.41282899,197.36,197.33,0.67]
[1756771670090,3.41282899,197.35,197.33,0.67]
[1756771670286,3.41282899,197.34,197.32,59.0]
[1756771670589,5.7468987,197.36,197.32,59.0]
[1756771670770,3.41291332,197.35,197.32,59.0]
[1756771670968,3.41291332,197.34,197.32,59.0]
[1756771671178,3.41291332,197.33,197.32,59.0]
[1756771671900,3.41291332,197.34,197.32,59.67]
[1756771672103,3.41291332,197.37,197.32,59.67]
[1756771672407,3.41291332,197.36,197.33,0.67]
[1756771672699,3.41291332,197.35,197.33,0.67]
[1756771672900,4.09291332,197.34,197.31,0.12]
[1756771673203,3.41291332,197.33,197.31,0.12]
[1756771673412,3.41291332,197.32,197.31,0.79]
[1756771673581,3.41291332,197.32,197.31,0.12]
[1756771675603,9.16082331,197.32,197.31,0.12]
[1756771676202,3.41291332,197.32,197.31,0.12]
[1756771676791,9.33443459,197.36,197.31,0.79]
[1756771676995,0.03,197.38,197.32,0.79]
[1756771676996,3.41280136,197.35,197.32,0.79]
[1756771677185,3.41280136,197.34,197.32,0.79]
[1756771677390,3.41280136,197.33,197.32,0.79]
[1756771677709,3.41280136,197.35,197.32,0.79]
[1756771677914,3.41280136,197.34,197.32,0.79]
[1756771678122,3.41280136,197.35,197.33,0.67]
[1756771678288,3.41280136,197.34,197.32,0.12]
[1756771678494,3.41280136,197.35,197.32,13.71559401]
[1756771678797,5.06765316,197.33,197.32,0.12]
[1756771679029,8.48024562,197.33,197.32,0.12]
[1756771679315,12.27276235,197.33,197.32,0.12]
[1756771679493,12.95276235,197.33,197.32,0.12]
[1756771680313,12.95220236,197.33,197.32,0.12]
[1756771681624,17.21954362,197.33,197.32,0.12]
[1756771681932,12.95220236,197.33,197.32,1e-08]
[1756771682089,16.53795257,197.33,197.31,0.12]
[1756771682294,7.2045492,197.32,197.31,0.12]
[1756771682614,3.41259246,197.32,197.31,0.12]
[1756771682792,0.03,197.36,197.31,5.85816684]
[1756771683115,0.03,197.38,197.33,13.59559401]
[1756771683284,0.03,197.41,197.35,13.59559401]
[1756771683491,0.03,197.43,197.37,39.59559401]
[1756771683714,0.03,197.45,197.39,13.59559401]
[1756771683918,0.03,197.45,197.41,13.59559401]
[1756771684099,0.03,197.45,197.4,0.67]
[1756771684419,5.09457772,197.45,197.4,0.67]
[1756771684605,26.0,197.42,197.34,13.59559401]
[1756771684807,0.68,197.41,197.33,0.67]
[1756771684996,5.06585612,197.4,197.33,0.67]
[1756771685805,5.06585612,197.4,197.34,59.0]
[1756771686015,5.06560767,197.41,197.35,13.59559401]
[1756771686209,5.06560767,197.41,197.36,0.71]
[1756771686518,5.77560767,197.41,197.35,13.59559401]
[1756771686910,10.07041083,197.45,197.37,13.59559401]
[1756771687114,9.36041083,197.45,197.38,0.71]
[1756771687299,5.09466172,197.45,197.38,0.71]
[1756771687510,5.09466172,197.45,197.39,13.59559401]
[1756771687511,0.03,197.45,197.39,13.59559401]
[1756771687719,0.03,197.45,197.4,0.71]
[1756771688190,0.03,197.45,197.41,0.71]
[1756771688510,5.0946497,197.45,197.41,0.71]
[1756771688891,0.03,197.45,197.42,0.71]
[1756771689105,0.03,197.45,197.43,0.71]
[1756771689522,0.03,197.45,197.39,5.06609807]
[1756771689706,0.03,197.45,197.43,0.71]
[1756771690121,0.03,197.45,197.4,13.59559401]
[1756771690319,0.74,197.45,197.37,0.71]
[1756771690618,0.03,197.45,197.38,13.59559401]
[1756771690923,0.03,197.45,197.4,13.59559401]
[1756771691135,0.03,197.45,197.41,5.06559951]
[1756771691620,0.03,197.45,197.43,13.59559401]
[1756771692106,0.03,197.45,197.44,0.71]
[1756771693412,0.03,197.47,197.45,13.59559401]
[1756771693616,0.03,197.48,197.46,13.59559401]
[1756771693922,0.03,197.5,197.48,13.59559401]
[1756771694310,0.03,197.5,197.49,14.30559401]
[1756771695029,0.03,197.5,197.49,57.60559401]
[1756771695918,0.03,197.5,197.49,62.66914153]
[1756771696527,0.03,197.5,197.49,116.54559401]
[1756771697328,0.03,197.5,197.49,73.30559401]
[1756771698017,0.03,197.5,197.49,116.46559401]
[1756771698546,5.87188316,197.56,197.53,13.59559401]
[1756771698547,0.1,197.56,197.53,13.59559401]
[1756771698715,0.1,197.56,197.55,13.59559401]
[1756771699214,0.1,197.56,197.55,14.30559401]
[1756771699415,0.1,197.56,197.55,57.46559401]
[1756771700938,0.1,197.56,197.55,57.42559401]
[1756771701310,0.1,197.56,197.55,14.30559401]
[1756771701514,0.1,197.56,197.55,57.40559401]
[1756771701725,0.1,197.56,197.55,116.40559401]
[1756771701927,0.1,197.56,197.55,121.46760362]
[1756771702433,0.1,197.56,197.55,116.38559401]
[1756771702737,0.1,197.56,197.55,72.59559401]
[1756771703311,0.1,197.56,197.55,115.63559401]
[1756771703510,0.1,197.56,197.55,72.59559401]
[1756771703722,0.1,197.56,197.55,115.61559401]
[1756771704153,0.1,197.56,197.55,56.61559401]
[1756771704822,0.1,197.56,197.55,57.32559401]
[1756771705738,0.1,197.56,197.55,14.30559401]
[1756771705962,0.1,197.56,197.55,42.96]
[1756771706238,0.1,197.56,197.55,43.67]
[1756771707222,0.03,197.58,197.55,102.67]
[1756771707421,0.03,197.6,197.58,13.59559401]
[1756771707626,0.03,197.6,197.59,13.59559401]
[1756771707931,0.03,197.6,197.59,19.36657887]
[1756771708132,0.03,197.6,197.59,62.52657887]
[1756771708618,0.03,197.6,197.59,62.50657887]
[1756771710031,0.03,197.6,197.59,19.36657887]
[1756771710230,0.03,197.6,197.59,62.44657887]
[1756771712026,0.1,197.61,197.6,13.59559401]
[1756771712225,0.1,197.61,197.6,14.30559401]
[1756771712539,0.1,197.61,197.6,57.40559401]
[1756771713068,0.03,197.62,197.6,57.40559401]
[1756771713224,0.03,197.62,197.6,56.69559401]
[1756771713537,0.03,197.64,197.62,13.59559401]
[1756771713737,0.71,197.73,197.64,18.65529852]
[1756771713946,0.71,197.73,197.65,43.83]
[1756771714634,5.76760034,197.73,197.65,48.88937464]
[1756771715045,0.69,197.72,197.67,13.59559401]
[1756771715245,0.69,197.71,197.68,43.1]
[1756771715446,5.05760034,197.73,197.67,13.59559401]
[1756771715626,0.69,197.72,197.67,13.59559401]
[1756771715831,5.05760034,197.73,197.65,59.0]
[1756771715832,0.69,197.71,197.65,59.0]
[1756771716041,0.69,197.7,197.66,43.06]
[1756771716356,0.69,197.69,197.66,43.06]
[1756771716525,0.69,197.68,197.62,14.26559401]
[1756771716735,5.05893661,197.67,197.64,13.59559401]
[1756771717047,5.74893661,197.67,197.64,13.59559401]
[1756771717634,5.74893661,197.67,197.65,43.0]
[1756771719044,5.74893661,197.67,197.65,102.0]
[1756771719359,0.69,197.69,197.65,102.0]
[1756771719655,0.69,197.68,197.65,101.94]
[1756771720036,0.69,197.68,197.66,42.92]
[1756771720664,5.74889068,197.68,197.66,42.92]
[1756771721679,0.69,197.71,197.66,42.92]
[1756771721865,5.74819932,197.7,197.66,42.92]
[1756771722067,0.69,197.69,197.66,42.92]
[1756771722579,5.05819932,197.7,197.66,42.92]
[1756771722877,13.33414323,197.72,197.66,42.92]
[1756771722878,0.69,197.72,197.66,42.92]
[1756771723183,0.69,197.72,197.66,43.59]
[1756771724065,5.0574015,197.73,197.66,48.6491097]
[1756771724265,5.0574015,197.73,197.67,0.67]
[1756771724983,5.0574015,197.73,197.67,59.67]
[1756771726371,0.69,197.72,197.68,42.72]
[1756771726575,5.0574015,197.73,197.68,42.72]
[1756771726761,0.69,197.71,197.68,42.72]
[1756771726961,5.0574015,197.73,197.68,42.72]
[1756771727256,5.0574015,197.73,197.68,43.39]
[1756771727567,5.0574015,197.73,197.69,42.66]
[1756771727762,0.69,197.72,197.69,42.66]
[1756771727960,0.19,197.72,197.69,42.66]
[1756771728159,5.0574015,197.73,197.69,42.66]
[1756771728371,5.0574015,197.73,197.69,42.64]
[1756771728882,5.0574015,197.73,197.67,59.0]
[1756771729090,17.70090526,197.73,197.68,42.6]
[1756771729461,17.70090526,197.73,197.68,42.58]
[1756771729684,17.70090526,197.73,197.66,42.58]
[1756771729890,0.59,197.72,197.66,42.58]
[1756771730073,5.0579131,197.71,197.66,42.58]
[1756771730389,5.0579131,197.71,197.66,43.25]
[1756771730768,5.0579131,197.71,197.67,0.67]
[1756771730973,5.0579131,197.71,197.66,42.58]
[1756771731157,5.0579131,197.71,197.66,43.25]
[1756771731564,5.0579131,197.71,197.66,42.58]
[1756771731875,5.0579131,197.71,197.67,0.67]
[1756771732285,5.05765729,197.72,197.68,0.67]
[1756771732592,5.05765729,197.72,197.69,0.67]
[1756771732885,26.03,197.73,197.7,0.67]
[1756771733391,31.08763847,197.73,197.7,0.67]
[1756771734574,31.08763847,197.73,197.69,42.5]
[1756771734885,31.08763847,197.73,197.69,43.17]
[1756771735595,0.59,197.72,197.68,59.0]
[1756771735761,0.59,197.71,197.66,42.4]
[1756771736093,0.59,197.71,197.66,43.07]
[1756771736594,44.32114223,197.73,197.66,43.07]
[1756771737093,44.32114223,197.73,197.66,43.03]
[1756771737496,43.73114223,197.73,197.66,42.36]
[1756771737695,0.59,197.72,197.65,13.59559401]
[1756771737906,0.59,197.72,197.66,42.34]
[1756771738198,3.38767132,197.72,197.66,43.01]
[1756771738778,5.0579131,197.71,197.66,102.01]
[1756771738977,5.0579131,197.71,197.67,0.67]
[1756771740089,5.05765729,197.72,197.67,0.67]
[1756771740279,5.05765729,197.72,197.68,0.67]
[1756771740486,0.59,197.71,197.66,59.67]
[1756771740693,3.98040082,197.71,197.66,59.67]
[1756771741907,5.05765729,197.72,197.67,0.67]
[1756771742205,5.05765729,197.72,197.68,0.67]
[1756771742382,26.0,197.7,197.69,0.67]
[1756771742906,26.0,197.7,197.66,59.0]
[1756771742907,26.59,197.7,197.66,59.0]
[1756771743096,0.59,197.69,197.64,0.67]
[1756771743403,3.98579236,197.69,197.64,0.67]
[1756771744500,5.05868069,197.68,197.64,0.67]
[1756771745091,5.05868069,197.68,197.63,13.59559401]
[1756771745303,5.05868069,197.68,197.63,14.27559401]
[1756771745678,5.05868069,197.68,197.64,0.68]
[1756771745995,5.05868069,197.68,197.64,59.68]
[1756771746306,5.05868069,197.68,197.65,0.68]
[1756771746504,5.0584248,197.69,197.65,0.68]
[1756771746708,3.39955873,197.68,197.65,0.68]
[1756771747703,5.05893661,197.67,197.63,13.59559401]
[1756771747902,5.05893661,197.67,197.63,42.7]
[1756771748415,5.05893661,197.67,197.64,0.8]
[1756771748609,31.05821721,197.7,197.65,0.68]
[1756771748783,5.05821721,197.7,197.66,42.0]
[1756771749110,0.03,197.72,197.67,0.68]
[1756771749308,3.43212629,197.72,197.67,0.68]
[1756771749896,3.43212629,197.72,197.68,13.59559401]
[1756771750190,3.40212629,197.71,197.66,0.68]
[1756771750391,3.40212629,197.7,197.66,42.64]
[1756771750600,3.40212629,197.69,197.67,0.68]
[1756771750787,3.40212629,197.71,197.67,59.68]
[1756771751104,3.40212629,197.7,197.67,59.0]
[1756771751284,3.40212629,197.69,197.67,59.68]
[1756771751492,3.40212629,197.68,197.67,59.68]
[1756771751808,3.40212629,197.71,197.67,59.68]
[1756771751993,5.0584248,197.69,197.67,59.68]
[1756771752304,3.40212629,197.68,197.67,59.68]
[1756771753196,3.40212629,197.68,197.66,41.86]
[1756771753518,3.99212629,197.67,197.64,15.326427]
[1756771753686,26.0,197.65,197.64,0.12]
[1756771754014,38.72956234,197.65,197.64,1e-08]
[1756771754220,26.0,197.61,197.59,1e-08]
[1756771754512,9.11174198,197.6,197.59,1e-08]
[1756771754823,3.40212629,197.6,197.59,1e-08]
[1756771755189,7.66501021,197.6,197.59,1e-08]
[1756771755490,3.99212629,197.6,197.59,1e-08]
[1756771755686,3.40212629,197.6,197.59,1e-08]
[1756771756006,8.46285503,197.6,197.59,1e-08]
[1756771756304,34.46285503,197.6,197.59,1e-08]
[1756771758686,3.40212629,197.6,197.59,0.68000001]
[1756771758892,31.05996053,197.63,197.59,0.68000001]
[1756771759115,3.40212629,197.62,197.59,0.68000001]
[1756771759315,3.40212629,197.62,197.6,0.68]
[1756771759519,31.05996053,197.63,197.61,0.68]
[1756771759520,5.05996053,197.63,197.61,0.68]
[1756771759694,5.05944852,197.65,197.62,0.68]
[1756771760006,5.05944852,197.65,197.63,0.68]
[1756771760603,31.05868069,197.68,197.63,0.68]
[1756771760812,3.39912549,197.67,197.63,0.68]
[1756771761302,26.0,197.66,197.59,5.06088091]
[1756771761501,3.39912549,197.65,197.59,0.68000001]
[1756771762597,5.05970451,197.64,197.59,0.68000001]
[1756771762796,5.05970451,197.64,197.6,0.68]
[1756771763022,5.05970451,197.64,197.61,0.68]
[1756771763319,5.05970451,197.64,197.61,59.0]
[1756771763490,5.05970451,197.64,197.59,1e-08]
[1756771763696,3.98912375,197.63,197.59,1e-08]
[1756771764621,5.06021657,197.62,197.59,1e-08]
[1756771765398,0.59,197.61,197.59,1e-08]
[1756771765814,26.0,197.6,197.59,1e-08]
[1756771766022,29.98838385,197.6,197.59,1e-08]
[1756771767226,35.04911259,197.6,197.59,1e-08]
[1756771773233,47.70093445,197.6,197.55,0.12]
[1756771773412,26.0,197.56,197.55,0.12]
[1756771774323,31.06175339,197.56,197.55,0.12]
[1756771774724,31.65175339,197.56,197.55,0.12]
[1756771775316,72.58175339,197.56,197.55,0.12]
[1756771775514,75.97292879,197.56,197.55,0.12]
[1756771776430,75.97292879,197.56,197.5,0.68]
[1756771776635,75.97292879,197.56,197.51,0.68]
[1756771776636,3.3911754,197.55,197.51,0.68]
[1756771776828,26.0,197.52,197.49,0.12]
[1756771777340,26.0,197.52,197.5,0.68]
[1756771777518,26.0,197.52,197.49,0.12]
[1756771777519,26.0,197.55,197.51,0.68]
[1756771777719,26.0,197.55,197.5,59.0]
[1756771777920,67.48,197.55,197.51,0.68]
[1756771778520,26.0,197.52,197.51,0.68]
[1756771778721,26.0,197.52,197.49,0.12]
[1756771778948,26.0,197.52,197.49,0.8]
[1756771779634,41.44,197.53,197.49,0.8]
[1756771779942,67.44,197.53,197.49,0.8]
[1756771780521,5.06277845,197.52,197.49,0.12]
[1756771781235,5.06277845,197.52,197.49,0.8]
[1756771781950,26.0,197.5,197.49,0.12]
[1756771782148,41.42,197.51,197.49,0.12]
[1756771782446,42.01,197.51,197.49,0.12]
[1756771782628,5.06329113,197.5,197.49,0.12]
[1756771782823,5.65329113,197.5,197.49,0.12]
[1756771783036,5.65329113,197.5,197.47,0.12]
[1756771783037,26.0,197.48,197.47,0.12]
[1756771783249,67.4,197.48,197.47,0.12]
[1756771783435,26.59,197.48,197.47,0.12]
[1756771783633,67.4,197.48,197.47,0.12]
[1756771784962,67.38,197.48,197.47,0.12]
[1756771786235,41.36,197.48,197.47,0.8]
[1756771786555,26.0,197.48,197.47,0.8]
[1756771786850,31.06380392,197.48,197.47,0.8]
[1756771787652,72.38380392,197.48,197.47,0.12]
[1756771788360,72.36380392,197.48,197.47,0.12]
[1756771789931,72.95380392,197.48,197.47,0.12]
[1756771793858,72.36380392,197.48,197.47,0.12]
[1756771796132,60.33900317,197.48,197.47,0.12]
[1756771799584,63.72863234,197.48,197.47,0.12]
[1756771801161,60.33900317,197.48,197.47,0.12]
[1756771801476,19.03900317,197.48,197.47,0.12]
[1756771801681,60.19900317,197.48,197.47,0.12]
[1756771802386,64.17789354,197.48,197.47,1e-08]
[1756771802682,71.05609357,197.48,197.47,1e-08]
[1756771803666,70.46609357,197.48,197.47,1e-08]
[1756771804549,71.05609357,197.48,197.47,1e-08]
[1756771804751,70.46609357,197.48,197.47,1e-08]
[1756771805178,71.05609357,197.48,197.47,1e-08]
[1756771805675,70.46609357,197.48,197.47,1e-08]
[1756771808061,68.43568857,197.48,197.47,0.65000001]
[1756771808377,68.43568857,197.48,197.47,1e-08]
[1756771809166,69.02568857,197.48,197.47,1e-08]
[1756771809369,68.43568857,197.48,197.47,1e-08]
[1756771810079,68.43568857,197.48,197.45,0.12]
[1756771810080,82.62128258,197.48,197.45,1e-08]
[1756771810282,82.62128258,197.48,197.39,59.2]
[1756771810283,39.59559401,197.43,197.39,0.2]
[1756771810479,26.0,197.4,197.39,0.2]
[1756771810685,70.52889037,197.4,197.39,0.2]
[1756771810978,75.3766854,197.4,197.39,0.2]
[1756771811288,75.3766854,197.4,197.39,0.85]
[1756771811486,3.38889037,197.4,197.39,0.85]
[1756771811688,3.38889037,197.42,197.39,0.85]
[1756771811891,2.03092,197.44,197.4,14.24559401]
[1756771812072,2.03092,197.44,197.41,0.65]
[1756771812274,67.17,197.49,197.41,0.65]
[1756771812586,0.03,197.49,197.42,13.59559401]
[1756771812886,0.03,197.49,197.43,0.65]
[1756771813086,5.09356754,197.49,197.43,0.65]
[1756771813290,5.09356754,197.49,197.43,59.65]
[1756771813493,0.03,197.49,197.44,0.65]
[1756771815775,0.03,197.49,197.44,5.71477235]
[1756771816291,0.03,197.49,197.44,5.06477235]
[1756771816594,0.03,197.49,197.45,0.65]
[1756771816777,0.03,197.49,197.45,5.71450677]
[1756771817281,0.03,197.49,197.46,0.65]
[1756771818378,0.03,197.49,197.47,13.59559401]
[1756771818772,0.03,197.49,197.48,0.65]
[1756771819396,0.03,197.49,197.48,14.24559401]
[1756771819570,0.03,197.49,197.48,73.24559401]
[1756771820186,0.03,197.49,197.48,78.30939793]
[1756771820694,0.03,197.49,197.48,59.65]
[1756771821374,0.03,197.49,197.47,0.12]
[1756771821776,0.03,197.49,197.48,0.65]
[1756771822184,0.03,197.49,197.47,0.12]
[1756771822384,0.71,197.49,197.47,0.12]
[1756771822697,26.0,197.48,197.47,0.12]
[1756771823881,29.40513297,197.48,197.47,0.12]
[1756771824296,34.46893689,197.48,197.47,0.12]
[1756771825288,35.14893689,197.48,197.47,0.12]
[1756771826392,29.40513297,197.48,197.47,0.12]
[1756771826902,35.14893689,197.48,197.47,0.12]
[1756771827096,39.40348267,197.48,197.45,0.12]
[1756771827297,13.59559401,197.46,197.45,1e-08]
[1756771827506,26.0,197.44,197.43,1e-08]
[1756771827701,29.40513297,197.44,197.43,1e-08]
[1756771827882,39.18747378,197.44,197.43,1e-08]
[1756771828486,44.2523036,197.44,197.43,1e-08]
[1756771828689,34.46996279,197.44,197.43,1e-08]
[1756771829297,35.14996279,197.44,197.43,1e-08]
[1756771830779,34.46996279,197.44,197.43,1e-08]
[1756771831708,35.14996279,197.44,197.43,1e-08]
[1756771832287,76.26996279,197.44,197.43,1e-08]
[1756771832601,80.52450857,197.44,197.43,1e-08]
[1756771832799,83.17213656,197.44,197.43,1e-08]
[1756771833112,91.57966533,197.44,197.39,0.2]
[1756771833405,26.0,197.4,197.39,0.2]
[1756771833607,70.52513297,197.4,197.39,0.2]
[1756771833985,3.40513297,197.4,197.39,0.85]
[1756771834187,44.52513297,197.42,197.39,0.85]
[1756771834400,3.40513297,197.41,197.39,0.85]
[1756771834598,8.47079607,197.41,197.4,0.65]
[1756771834981,8.47079607,197.41,197.39,0.2]
[1756771835283,5.0656631,197.41,197.39,0.2]
[1756771835804,5.0656631,197.41,197.39,0.9]
[1756771836004,4.12484492,197.4,197.39,0.2]
[1756771836709,35.19070104,197.4,197.39,0.2]
[1756771837283,76.31070104,197.4,197.39,0.2]
[1756771838224,34.47070104,197.4,197.39,0.2]
[1756771838390,70.52484492,197.4,197.39,0.9]
[1756771838588,70.52484492,197.4,197.39,0.2]
[1756771838905,75.59070104,197.4,197.39,0.2]
[1756771839802,41.12,197.4,197.39,0.9]
[1756771840106,67.12,197.41,197.39,0.9]
[1756771840609,26.0,197.41,197.39,0.9]
[1756771841020,5.06533775,197.43,197.4,0.7]
[1756771841205,5.06533775,197.43,197.39,0.2]
[1756771841206,3.40175921,197.42,197.41,0.7]
[1756771841786,46.18533775,197.43,197.41,0.7]
[1756771842189,0.03,197.44,197.42,0.7]
[1756771842397,3.43167605,197.44,197.39,0.2]
[1756771842694,3.43167605,197.44,197.42,0.7]
[1756771843424,8.49658075,197.44,197.42,0.7]
[1756771843711,0.03,197.44,197.43,0.7]
[1756771847312,0.03,197.44,197.43,59.7]
[1756771851697,0.03,197.44,197.43,59.0]
[1756771851903,0.03,197.44,197.39,0.2]
[1756771852107,0.03,197.44,197.4,0.7]
[1756771852622,0.03,197.44,197.41,0.7]
[1756771853008,0.03,197.44,197.42,0.7]
[1756771853911,0.03,197.44,197.39,5.26605695]
[1756771854109,0.03,197.44,197.4,0.7]
[1756771854506,0.72,197.43,197.39,0.2]
[1756771854819,0.03,197.44,197.39,0.2]
[1756771854820,0.72,197.42,197.39,0.2]
[1756771855535,26.72,197.41,197.39,0.2]
[1756771855736,44.48158622,197.4,197.39,0.2]
[1756771855902,49.54744234,197.4,197.39,0.2]
[1756771856211,50.26744234,197.4,197.39,0.2]
[1756771860409,50.26744234,197.4,197.39,1e-08]
[1756771861011,63.86303635,197.4,197.39,1e-08]
[1756771861232,26.0,197.38,197.37,1e-08]
[1756771861407,29.40158622,197.38,197.37,1e-08]
[1756771861726,30.12158622,197.38,197.37,1e-08]
[1756771861929,35.18795565,197.38,197.37,1e-08]
[1756771862131,39.27312565,197.38,197.37,1e-08]
[1756771862938,35.18795565,197.38,197.37,1e-08]
[1756771864732,34.46795565,197.38,197.37,1e-08]
[1756771865036,3.39924598,197.38,197.37,1e-08]
[1756771865232,5.06581388,197.41,197.37,0.69000001]
[1756771865531,3.40012843,197.4,197.37,0.69000001]
[1756771865703,26.0,197.39,197.38,0.69]
[1756771866019,5.06611277,197.39,197.38,0.69]
[1756771866328,8.46730775,197.39,197.37,1e-08]
[1756771866528,5.06611277,197.39,197.37,1e-08]
[1756771866930,46.1258953,197.4,197.37,1e-08]
[1756771867123,26.0,197.41,197.37,0.69000001]
[1756771867326,44.46188341,197.4,197.37,1e-08]
[1756771867524,41.06,197.4,197.38,0.69]
[1756771867835,41.06,197.4,197.37,1e-08]
[1756771868014,3.40206052,197.39,197.37,0.69000001]
[1756771868329,8.468374,197.39,197.37,0.69000001]
[1756771868531,5.06631348,197.39,197.37,0.69000001]
[1756771868846,26.0,197.41,197.38,0.69]
[1756771869134,41.06,197.41,197.38,0.69]
[1756771869436,46.12512649,197.43,197.38,0.69]
[1756771869611,3.4025067,197.42,197.38,0.69]
[1756771869806,0.03,197.44,197.38,0.69]
[1756771870033,26.0,197.43,197.38,0.69]
[1756771870532,26.0,197.43,197.38,5.75613974]
[1756771870726,26.0,197.43,197.39,0.69]
[1756771870932,0.03,197.44,197.39,0.69]
[1756771873231,0.03,197.44,197.4,5.06585612]
[1756771873923,0.03,197.44,197.41,0.69]
[1756771874244,0.03,197.44,197.42,5.06534292]
[1756771874634,0.03,197.44,197.43,0.69]
[1756771875020,0.03,197.44,197.43,14.28559401]
[1756771876453,0.03,197.44,197.43,19.35068036]
[1756771879540,0.03,197.44,197.43,19.85718899]
[1756771879739,0.03,197.46,197.44,13.59559401]
[1756771880061,0.03,197.46,197.45,81.12205134]
[1756771880352,0.03,197.46,197.45,81.81205134]
[1756771880725,0.03,197.46,197.45,140.81205134]
[1756771880934,0.03,197.46,197.45,142.33466101]
[1756771881551,0.03,197.46,197.45,147.39923431]
[1756771882646,0.03,197.48,197.47,39.59559401]
[1756771882850,0.03,197.48,197.47,40.10200004]
[1756771883035,0.03,197.48,197.47,40.79200004]
[1756771883633,1e-08,197.48,197.47,40.79200004]
[1756771884154,1e-08,197.49,197.48,13.59559401]
[1756771884354,1e-08,197.49,197.48,14.28559401]
[1756771884737,1e-08,197.49,197.48,19.34939793]
[1756771885331,1e-08,197.49,197.48,60.34939793]
[1756771885552,1e-08,197.49,197.48,82.88422732]
[1756771885754,1e-08,197.49,197.48,141.88422732]
[1756771886055,1e-08,197.49,197.48,141.37784693]
[1756771887163,1e-08,197.49,197.48,121.37784693]
[1756771888047,1e-08,197.49,197.48,121.35784693]
[1756771889255,1e-08,197.49,197.48,121.33784693]
[1756771891675,1e-08,197.49,197.48,80.37784693]
[1756771891884,1e-08,197.49,197.48,74.62404301]